bitfinex-derivatives/quotes_SOLF0:USTF0_20260226
["timestamp","ask_amount","ask_price","bid_price","bid_amount"]
[1772135779059,2.74701282,86.41,86.361,6.37336875]
[1772135779862,2.74701282,86.41,86.368,10.4201]
[1772135780859,6.26464524,86.409,86.361,6.37336875]
[1772135781259,6.26464524,86.399,86.351,10.4222]
[1772135785764,6.26464524,86.399,86.347,6.37336875]
[1772135785765,6.26464524,86.379,86.343,10.4231]
[1772135789465,6.26464524,86.379,86.332,6.37336875]
[1772135789466,6.26464524,86.379,86.335,10.4241]
[1772135789763,6.26464524,86.379,86.335,16.79746875]
[1772135790965,6.26464524,86.379,86.345,10.4229]
[1772135791262,2.74701282,86.39,86.341,6.37336875]
[1772135791559,6.26464524,86.397,86.351,10.4221]
[1772135792861,6.26464524,86.39,86.351,10.4221]
[1772135793264,9.00917786,86.39,86.351,10.4221]
[1772135796661,6.26464524,86.39,86.354,6.38523569]
[1772135796966,2.74453262,86.4,86.354,6.38523569]
[1772135797966,2.74453262,86.4,86.355,10.4217]
[1772135798166,6.59341338,86.403,86.356,6.38523569]
[1772135798366,6.59341338,86.403,86.361,6.38523569]
[1772135799872,6.59510912,86.399,86.348,6.45219691]
[1772135800668,6.59510912,86.399,86.35,10.4222]
[1772135801267,6.59510912,86.399,86.355,10.4216]
[1772135801968,2.74453262,86.39,86.355,10.4216]
[1772135802268,6.59510912,86.39,86.361,10.421]
[1772135803865,6.59510912,86.389,86.34,2.74453262]
[1772135804065,2.74453262,86.38,86.338,6.45219691]
[1772135804368,6.59510912,86.389,86.338,6.45219691]
[1772135804869,6.59510912,86.389,86.346,10.4227]
[1772135806064,6.59510912,86.389,86.347,6.45219691]
[1772135806270,6.59510912,86.389,86.349,10.4224]
[1772135807571,6.59510912,86.387,86.347,6.45219691]
[1772135808370,6.59510912,86.387,86.335,6.45219691]
[1772135808871,6.59510912,86.359,86.31,6.45219691]
[1772135809067,2.74453262,86.35,86.31,6.45219691]
[1772135809267,17.01760912,86.349,86.31,6.45219691]
[1772135809468,6.59510912,86.348,86.31,6.45219691]
[1772135810671,2.74453262,86.34,86.298,10.4285]
[1772135810873,6.59510912,86.339,86.298,10.4285]
[1772135813370,10.4237,86.339,86.294,6.45219691]
[1772135813576,6.59510912,86.338,86.294,6.45219691]
[1772135814877,10.424,86.337,86.294,6.45219691]
[1772135815374,10.424,86.337,86.295,10.429]
[1772135815979,2.74453262,86.33,86.286,10.43]
[1772135816174,2.74453262,86.33,86.293,6.45219691]
[1772135816378,6.59510912,86.332,86.293,6.45219691]
[1772135817580,6.59510912,86.329,86.28,6.45219691]
[1772135818081,2.74453262,86.32,86.28,6.45219691]
[1772135818276,6.59510912,86.319,86.28,6.45219691]
[1772135819686,6.59510912,86.319,86.281,10.4306]
[1772135820586,6.59510912,86.319,86.274,10.4315]
[1772135820784,2.74453262,86.3,86.251,6.45219691]
[1772135820982,6.59510912,86.299,86.251,6.45219691]
[1772135821386,6.59510912,86.299,86.266,10.4324]
[1772135821891,6.59510912,86.299,86.262,6.45219691]
[1772135822490,6.59510912,86.299,86.272,10.4317]
[1772135823286,6.59510912,86.299,86.262,6.45219691]
[1772135823486,2.74453262,86.29,86.244,6.45219691]
[1772135823692,9.33964174,86.28,86.232,6.45219691]
[1772135824193,6.59510912,86.28,86.232,6.45219691]
[1772135824793,6.59510912,86.28,86.252,10.4341]
[1772135825094,2.74453262,86.3,86.251,6.45219691]
[1772135825295,6.59510912,86.309,86.251,6.45219691]
[1772135825892,2.74453262,86.3,86.265,10.4325]
[1772135826092,6.59510912,86.309,86.261,6.45219691]
[1772135826293,6.59510912,86.309,86.275,10.4313]
[1772135826491,6.59510912,86.309,86.261,6.45219691]
[1772135827396,6.59510912,86.309,86.267,10.4323]
[1772135827696,6.59510912,86.309,86.261,6.45219691]
[1772135828195,6.59510912,86.309,86.263,6.45219691]
[1772135828899,6.59510912,86.309,86.268,10.4322]
[1772135830598,6.59510912,86.309,86.263,6.45219691]
[1772135831300,6.59510912,86.309,86.264,10.4327]
[1772135831497,6.59510912,86.309,86.265,6.41627839]
[1772135832900,6.59510912,86.309,86.267,10.4322]
[1772135834298,6.59510912,86.309,86.267,16.84847839]
[1772135834491,5.88009276,86.325,86.271,6.41627839]
[1772135835301,5.88009276,86.325,86.278,6.41627839]
[1772135835998,5.88009276,86.323,86.279,10.4309]
[1772135836204,5.88009276,86.323,86.279,16.84717839]
[1772135836804,5.88009276,86.323,86.28,6.41627839]
[1772135837007,5.88009276,86.323,86.282,16.84677839]
[1772135837710,5.88009276,86.323,86.284,10.4303]
[1772135838006,5.88009276,86.323,86.284,16.84657839]
[1772135838908,5.88009276,86.323,86.284,6.41627839]
[1772135840404,10.4258,86.322,86.284,6.41627839]
[1772135840609,5.88009276,86.321,86.284,6.41627839]
[1772135840911,5.88009276,86.319,86.271,6.41627839]
[1772135841503,5.88009276,86.312,86.271,6.41627839]
[1772135843503,5.88009276,86.309,86.271,6.41627839]
[1772135845411,5.88009276,86.307,86.271,6.41627839]
[1772135845608,5.88009276,86.307,86.254,6.41627839]
[1772135846913,10.4285,86.299,86.256,6.41627839]
[1772135847411,16.30859276,86.299,86.257,10.4335]
[1772135847607,16.30859276,86.299,86.258,6.41627839]
[1772135848514,16.30859276,86.299,86.26,6.41627839]
[1772135849114,5.88009276,86.298,86.26,6.41627839]
[1772135849808,5.88009276,86.298,86.261,10.433]
[1772135850112,5.88009276,86.298,86.262,6.41627839]
[1772135850615,5.88009276,86.309,86.264,6.41627839]
[1772135850811,5.88009276,86.309,86.251,6.41627839]
[1772135851013,8.62462538,86.3,86.251,6.41627839]
[1772135851915,8.62462538,86.3,86.262,10.4329]
[1772135853211,8.63035419,86.3,86.262,10.4329]
[1772135853418,5.88009276,86.299,86.262,16.84917839]
[1772135855819,5.88009276,86.299,86.262,6.41627839]
[1772135856912,5.88009276,86.299,86.263,10.4328]
[1772135857812,5.88009276,86.299,86.263,16.58312155]
[1772135858016,2.75026143,86.3,86.266,6.15032155]
[1772135858221,8.48573363,86.31,86.266,6.15032155]
[1772135858417,8.48573363,86.3,86.266,6.15032155]
[1772135858718,5.7354722,86.299,86.266,6.15032155]
[1772135859813,20.8437,86.355,86.266,6.15032155]
[1772135860008,11.82238691,86.447,86.315,162.1914]
[1772135860208,11.82238691,86.44,86.38,2.75026143]
[1772135860517,11.82238691,86.399,86.34,10.4235]
[1772135860814,8.691e-05,86.389,86.348,5.21504514]
[1772135861014,2.75026143,86.4,86.349,5.83009161]
[1772135861208,2.75026143,86.38,86.333,5.83009161]
[1772135861409,5.21504514,86.417,86.333,5.83009161]
[1772135861714,2.75026143,86.41,86.341,5.83009161]
[1772135862015,2.75026143,86.42,86.36,2.75026143]
[1772135862616,2.75026143,86.43,86.371,5.83009161]
[1772135863211,8.8613187,86.42,86.371,5.83009161]
[1772135863408,6.11105727,86.399,86.35,5.83009161]
[1772135868822,2.75026143,86.39,86.34,2.75026143]
[1772135869024,8.8613187,86.39,86.334,5.83009161]
[1772135870427,6.11105727,86.39,86.334,5.83009161]
[1772135871025,6.11105727,86.39,86.34,2.75026143]
[1772135871232,10.4176,86.389,86.34,2.75026143]
[1772135872433,10.4181,86.386,86.334,5.83009161]
[1772135873036,10.4181,86.386,86.34,2.75026143]
[1772135873836,6.11105727,86.385,86.34,2.75026143]
[1772135874134,6.11105727,86.369,86.32,2.75026143]
[1772135874336,6.11105727,86.359,86.305,5.83009161]
[1772135874535,2.75026143,86.35,86.305,5.83009161]
[1772135874736,6.11105727,86.339,86.281,5.83009161]
[1772135875436,6.11105727,86.337,86.282,5.83009161]
[1772135876041,6.11105727,86.337,86.286,5.83009161]
[1772135876238,6.11105727,86.337,86.29,2.75026143]
[1772135876437,6.11105727,86.337,86.286,5.83009161]
[1772135879838,10.4242,86.335,86.286,5.83009161]
[1772135880042,2.75026143,86.33,86.286,5.83009161]
[1772135880641,6.11105727,86.327,86.27,8.55835653]
[1772135880838,6.11105727,86.327,86.271,5.8080951]
[1772135881540,10.4254,86.325,86.271,10.4318]
[1772135881740,10.4254,86.325,86.272,5.82559671]
[1772135881944,2.75026143,86.32,86.272,5.82559671]
[1772135882344,2.75026143,86.32,86.275,10.4314]
[1772135882541,6.11105727,86.324,86.276,5.75086565]
[1772135882846,6.11105727,86.338,86.291,5.75086565]
[1772135883245,6.11105727,86.329,86.28,2.75026143]
[1772135883544,6.11105727,86.329,86.273,5.7679319]
[1772135883942,6.11105727,86.327,86.276,10.4312]
[1772135884245,2.75026143,86.32,86.273,5.7679319]
[1772135884546,6.11105727,86.327,86.273,5.7679319]
[1772135885244,6.11105727,86.327,86.28,8.58035304]
[1772135885547,8.8613187,86.34,86.29,8.58035304]
[1772135885847,8.8613187,86.34,86.238,20.8716]
[1772135885848,6.11105727,86.449,86.331,3.12886094]
[1772135886039,6.11105727,86.439,86.371,2.95948681]
[1772135886443,6.11105727,86.437,86.378,10.4189]
[1772135888247,6.11105727,86.437,86.354,3.12167246]
[1772135888743,6.11105727,86.426,86.367,10.4202]
[1772135888943,6.11105727,86.419,86.367,10.4202]
[1772135889442,6.11105727,86.419,86.354,3.12167246]
[1772135889443,6.11105727,86.476,86.415,3.13948783]
[1772135889643,6.56790041,86.51,86.451,3.13961804]
[1772135889844,6.56790041,86.509,86.411,3.13961804]
[1772135890046,6.56790041,86.489,86.411,3.13961804]
[1772135890348,6.56790041,86.489,86.419,10.414]
[1772135890550,6.56790041,86.489,86.411,3.13961804]
[1772135891951,6.56790041,86.474,86.411,3.13961804]
[1772135892152,6.56790041,86.474,86.393,3.00632833]
[1772135892655,7.0,86.46,86.393,3.00632833]
[1772135892844,13.56790041,86.46,86.393,3.00632833]
[1772135894057,13.56790041,86.46,86.397,10.4166]
[1772135894756,13.56790041,86.46,86.402,2.88032312]
[1772135895057,6.56790041,86.46,86.402,2.88032312]
[1772135895854,6.56790041,86.46,86.409,10.4152]
[1772135896060,6.56790041,86.46,86.402,2.88032312]
[1772135897859,13.56790041,86.46,86.403,10.4158]
[1772135898060,13.56790041,86.46,86.404,2.85072998]
[1772135898861,13.56790041,86.46,86.405,10.4156]
[1772135899362,7.0,86.46,86.406,2.88165769]
[1772135900860,6.56790041,86.457,86.326,2.90235072]
[1772135901164,6.56790041,86.399,86.331,2.90235072]
[1772135901662,6.56790041,86.398,86.332,10.4244]
[1772135902859,6.56790041,86.396,86.332,10.4244]
[1772135903262,6.56790041,86.396,86.332,13.19144523]
[1772135903865,6.56790041,86.394,86.332,13.19144523]
[1772135904162,6.56790041,86.394,86.332,2.76704523]
[1772135905267,6.56790041,86.389,86.332,2.76704523]
[1772135906068,10.4179,86.388,86.333,10.4243]
[1772135907169,16.98580041,86.388,86.333,10.4243]
[1772135909170,16.98580041,86.388,86.337,10.4238]
[1772135910572,6.56790041,86.405,86.358,13.30605249]
[1772135910972,6.56790041,86.405,86.32,7.34563786]
[1772135911273,6.56790041,86.405,86.321,2.88418328]
[1772135911571,6.56790041,86.403,86.343,2.8898153]
[1772135912072,6.56790041,86.403,86.321,2.85572572]
[1772135912274,6.56790041,86.389,86.33,10.4247]
[1772135913072,16.98610041,86.385,86.33,10.4247]
[1772135913272,6.56790041,86.384,86.33,10.4247]
[1772135913675,6.56790041,86.384,86.33,13.29125884]
[1772135914873,6.56790041,86.384,86.337,10.4238]
[1772135915370,10.4184,86.383,86.33,2.86655884]
[1772135915674,6.56790041,86.384,86.33,2.86655884]
[1772135916875,10.4195,86.374,86.33,2.86655884]
[1772135917867,16.76123221,86.382,86.331,10.4246]
[1772135918070,6.34273221,86.397,86.33,2.86655884]
[1772135920074,6.59126914,86.389,86.294,2.95111631]
[1772135920471,10.4187,86.38,86.33,2.95617228]
[1772135920672,6.59126914,86.389,86.33,2.95617228]
[1772135920977,6.59126914,86.365,86.314,10.4266]
[1772135921275,6.59126914,86.365,86.307,2.95600676]
[1772135921975,6.59126914,86.365,86.321,10.4257]
[1772135923578,6.59126914,86.356,86.313,10.4268]
[1772135924078,10.4218,86.355,86.307,2.95600676]
[1772135924680,10.4226,86.348,86.31,10.4271]
[1772135925380,10.4226,86.348,86.307,2.95600676]
[1772135925678,10.4234,86.341,86.271,2.98543112]
[1772135925882,6.59126914,86.356,86.296,10.4288]
[1772135926180,6.59126914,86.356,86.287,2.98543112]
[1772135926380,6.59126914,86.341,86.287,2.98543112]
[1772135927981,10.4252,86.327,86.288,10.4297]
[1772135928184,6.59126914,86.341,86.287,2.98543112]
[1772135928583,10.4249,86.33,86.287,2.98543112]
[1772135929191,17.01676914,86.324,86.272,3.06255696]
[1772135929678,6.59126914,86.324,86.272,3.06255696]
[1772135929983,6.59126914,86.324,86.28,10.4308]
[1772135931087,6.59126914,86.324,86.287,10.4299]
[1772135932383,6.59126914,86.339,86.287,10.4299]
[1772135932579,6.59126914,86.339,86.295,10.429]
[1772135932985,6.59126914,86.335,86.287,10.4299]
[1772135933890,10.4245,86.332,86.287,10.4299]
[1772135934289,6.59126914,86.331,86.276,3.11029]
[1772135934489,10.4257,86.323,86.276,3.11029]
[1772135935087,10.4266,86.316,86.276,3.11029]
[1772135935288,6.59126914,86.315,86.27,10.432]
[1772135936086,6.59126914,86.367,86.29,7.35273364]
[1772135937193,10.4212,86.36,86.305,10.4277]
[1772135937393,6.82653227,86.359,86.305,10.4277]
[1772135938295,6.82653227,86.359,86.312,10.4269]
[1772135938497,6.62905984,86.357,86.312,10.4269]
[1772135939893,10.4218,86.355,86.312,10.4269]
[1772135940095,17.06473349,86.355,86.312,10.4269]
[1772135940394,6.64293349,86.354,86.312,10.4269]
[1772135942090,6.64302724,86.351,86.305,10.4278]
[1772135942593,6.64302724,86.342,86.298,10.4286]
[1772135943596,6.64302724,86.342,86.305,10.4276]
[1772135943797,10.4222,86.351,86.305,10.4276]
[1772135944098,10.4222,86.351,86.299,0.41463074]
[1772135944290,10.4222,86.351,86.303,0.37064779]
[1772135944494,6.64302569,86.357,86.303,0.37064779]
[1772135945195,6.64302569,86.357,86.32,10.4259]
[1772135945698,6.64302569,86.357,86.303,0.37064779]
[1772135945898,6.66799377,86.355,86.312,10.4268]
[1772135947102,6.66799377,86.355,86.305,10.4277]
[1772135947400,6.66799377,86.355,86.303,0.37064779]
[1772135947702,6.66799377,86.355,86.319,10.4261]
[1772135949606,6.80069104,86.369,86.33,2.74601633]
[1772135950105,6.80069104,86.369,86.332,10.4244]
[1772135950300,10.4185,86.382,86.34,2.74601633]
[1772135950500,6.80069104,86.379,86.33,2.74601633]
[1772135951906,10.4197,86.372,86.33,2.74601633]
[1772135952598,6.80069104,86.379,86.332,10.4245]
[1772135953206,17.21969104,86.378,86.332,10.4245]
[1772135953608,17.21969104,86.378,86.34,2.74601633]
[1772135954109,10.4195,86.374,86.326,0.23002779]
[1772135954305,10.4195,86.374,86.34,2.74601633]
[1772135956912,10.4195,86.374,86.331,10.4245]
[1772135957112,10.4195,86.374,86.34,2.74601633]
[1772135960216,6.80069104,86.393,86.35,2.74601633]
[1772135961708,6.80069104,86.384,86.34,2.74601633]
[1772135962012,6.80069104,86.379,86.32,2.74601633]
[1772135962213,6.80069104,86.374,86.33,2.74601633]
[1772135962606,6.80069104,86.369,86.313,0.2670337]
[1772135963514,6.80069104,86.36,86.315,10.4265]
[1772135964819,9.74601633,86.37,86.315,10.4265]
[1772135964820,6.80069104,86.357,86.315,10.4265]
[1772135965119,6.80069104,86.357,86.3,2.99667086]
[1772135965319,6.80069104,86.357,86.301,0.25521507]
[1772135965919,10.4224,86.35,86.308,10.4274]
[1772135966319,10.4224,86.35,86.31,2.74601633]
[1772135967021,6.80069104,86.356,86.313,10.4268]
[1772135967217,6.80069104,86.369,86.321,0.27418415]
[1772135968618,6.80069104,86.369,86.331,0.26216716]
[1772135969121,6.80069104,86.369,86.331,10.68666716]
[1772135970322,10.4193,86.376,86.33,2.74601633]
[1772135970323,6.87853991,86.386,86.349,0.08876284]
[1772135971923,9.74601633,86.4,86.311,20.8541]
[1772135971924,6.8191126,86.399,86.351,0.21174803]
[1772135972821,6.8191126,86.399,86.36,10.421]
[1772135974928,17.23488155,86.397,86.353,10.4219]
[1772135975325,26.52263155,86.613,86.408,486.0482]
[1772135975620,26.52263155,86.635,86.54,2.74382233]
[1772135975825,26.52263155,86.63,86.57,2.74382233]
[1772135976022,26.52263155,86.63,86.504,161.8367]
[1772135976023,6.23623155,86.63,86.58,2.74382233]
[1772135976221,3.155e-05,86.63,86.58,2.74382233]
[1772135976430,2.74385388,86.63,86.55,2.74382233]
[1772135976723,2.74382233,86.62,86.498,161.848]
[1772135976923,2.74382233,86.62,86.462,485.7474]
[1772135976924,2.74382233,86.6,86.53,2.74382233]
[1772135977126,10.3925,86.598,86.5,10.4042]
[1772135977323,7.31965486,86.61,86.5,7.31965486]
[1772135977719,5.20833776,86.628,86.52,7.31965486]
[1772135978024,7.31965486,86.61,86.52,7.31965486]
[1772135978226,10.74415322,86.579,86.48,7.31965486]
[1772135978427,10.74415322,86.579,86.419,161.9948]
[1772135978428,10.74415322,86.579,86.411,162.0113]
[1772135978725,10.74415322,86.558,86.439,10.4116]
[1772135978926,10.74415322,86.549,86.45,7.31965486]
[1772135979230,10.74415322,86.549,86.47,7.31965486]
[1772135981031,10.3985,86.548,86.47,7.31965486]
[1772135981827,10.74415322,86.549,86.471,10.4077]
[1772135982132,10.74415322,86.549,86.47,7.31965486]
[1772135982833,20.20250155,86.548,86.47,7.31965486]
[1772135983028,9.80185664,86.547,86.47,7.31965486]
[1772135984331,9.67315019,86.542,86.47,7.31965486]
[1772135986932,9.66853289,86.54,86.47,7.31965486]
[1772135987627,10.3997,86.539,86.47,7.31965486]
[1772135988033,9.66616424,86.538,86.47,7.31965486]
[1772135988634,9.66616424,86.533,86.45,7.31965486]
[1772135989235,9.66382109,86.529,86.43,7.31965486]
[1772135989427,9.66382109,86.529,86.41,7.31965486]
[1772135989734,9.66382109,86.496,86.414,10.4145]
[1772135990434,9.72383453,86.493,86.414,10.4145]
[1772135990629,9.72383453,86.493,86.401,10.4161]
[1772135991732,9.72175052,86.477,86.4,7.31965486]
[1772135992237,10.4092,86.459,86.4,7.31965486]
[1772135993137,20.10227961,86.459,86.4,7.31965486]
[1772135993337,9.69307961,86.452,86.38,7.31965486]
[1772135993535,9.69307961,86.452,86.4,7.31965486]
[1772135995135,10.4102,86.451,86.386,10.4179]
[1772135999045,9.6776671,86.448,86.386,10.4179]
[1772135999440,10.4122,86.435,86.32,177.0]
[1772135999643,9.6776671,86.434,86.36,7.31965486]
[1772136000345,20.08545304,86.432,86.363,10.4206]
[1772136000641,9.67295304,86.431,86.363,10.4206]
[1772136000843,161.8428,86.502,86.319,20.8521]
[1772136000844,10.4123,86.434,86.38,7.31965486]
[1772136001846,9.67100482,86.439,86.381,10.4185]
[1772136003047,9.67100482,86.439,86.37,7.31965486]
[1772136003048,9.63950964,86.437,86.372,10.4197]
[1772136003251,9.63950964,86.437,86.35,7.31965486]
[1772136003548,20.05420964,86.414,86.351,10.4221]
[1772136003953,9.63950964,86.413,86.351,10.4221]
[1772136004346,9.63950964,86.413,86.36,10.421]
[1772136005553,10.4149,86.412,86.36,10.421]
[1772136005747,9.62078767,86.411,86.351,10.4221]
[1772136006547,9.62078767,86.411,86.338,10.4237]
[1772136006849,7.31965486,86.41,86.338,10.4237]
[1772136007051,9.61422686,86.385,86.31,7.31965486]
[1772136008053,9.61422686,86.385,86.29,7.31965486]
[1772136008952,9.61144301,86.367,86.307,10.4275]
[1772136009544,9.61144301,86.367,86.29,7.31965486]
[1772136010552,9.61144301,86.367,86.313,10.4268]
[1772136010851,10.4205,86.366,86.313,10.4268]
[1772136011848,10.4208,86.364,86.313,10.4268]
[1772136012248,19.92798595,86.364,86.313,10.4268]
[1772136015354,9.50137943,86.363,86.313,10.4268]
[1772136016059,9.47220975,86.36,86.304,10.4278]
[1772136016461,9.47220975,86.36,86.29,7.31965486]
[1772136016759,9.47220975,86.36,86.319,10.426]
[1772136017058,9.47220975,86.379,86.29,7.31965486]
[1772136017361,9.47022443,86.377,86.29,7.31965486]
[1772136018155,9.42551727,86.446,86.31,7.31965486]
[1772136018360,9.42551727,86.429,86.33,7.31965486]
[1772136019965,9.42347689,86.41,86.36,10.4211]
[1772136020159,9.42347689,86.41,86.35,7.31965486]
[1772136020561,9.40123509,86.431,86.379,10.4188]
[1772136021758,9.40123509,86.431,86.35,7.31965486]
[1772136022064,9.39920823,86.421,86.34,7.31965486]
[1772136022857,9.48046191,86.417,86.366,10.4203]
[1772136023957,9.47865707,86.435,86.36,7.31965486]
[1772136024562,9.57328273,86.432,86.36,7.31965486]
[1772136025057,9.57328273,86.432,86.34,7.31965486]
[1772136025362,9.57171492,86.415,86.371,10.4197]
[1772136027366,9.57171492,86.415,86.379,10.4188]
[1772136029164,9.57171492,86.415,86.372,10.4197]
[1772136029465,9.55646824,86.413,86.34,7.31965486]
[1772136030365,9.55646824,86.413,86.362,10.4209]
[1772136031361,9.55646824,86.413,86.34,7.31965486]
[1772136031664,9.53582598,86.426,86.36,7.31965486]
[1772136033361,9.53582598,86.426,86.338,5.20743484]
[1772136033362,9.53582598,86.426,86.37,7.34230056]
[1772136033863,9.53582598,86.426,86.397,10.4166]
[1772136034062,9.53718283,86.446,86.397,10.4166]
[1772136034466,9.53718283,86.446,86.37,7.34230056]
[1772136034663,9.53718283,86.469,86.39,7.34230056]
[1772136035069,9.53718283,86.469,86.391,20.8348]
[1772136035669,9.53718283,86.469,86.41,7.34230056]
[1772136035868,9.53718283,86.469,86.433,10.4123]
[1772136037063,9.56438828,86.491,86.44,10.4114]
[1772136037367,9.56438828,86.539,86.43,7.34230056]
[1772136037767,9.56438828,86.519,86.462,10.4088]
[1772136037971,9.56438828,86.519,86.43,7.34230056]
[1772136038158,9.72268083,86.505,86.451,10.4101]
[1772136038364,9.72268083,86.505,86.43,7.34230056]
[1772136038565,9.72268083,86.526,86.45,7.34230056]
[1772136038868,9.72268083,86.526,86.472,10.4075]
[1772136040969,9.72268083,86.526,86.463,10.4087]
[1772136041169,9.72268083,86.526,86.45,7.34230056]
[1772136041670,9.78750347,86.524,86.471,10.4076]
[1772136042171,9.78750347,86.524,86.43,7.34230056]
[1772136042372,9.6921524,86.513,86.43,7.34230056]
[1772136043066,9.69112885,86.531,86.45,7.34230056]
[1772136043267,9.69112885,86.531,86.43,7.34230056]
[1772136044171,9.68292899,86.53,86.45,7.34230056]
[1772136045973,9.6819225,86.525,86.472,10.4075]
[1772136046868,9.59964202,86.523,86.472,10.4075]
[1772136047573,9.59964202,86.523,86.45,7.34230056]
[1772136047869,9.59853291,86.499,86.39,7.34230056]
[1772136048073,9.59853291,86.499,86.41,7.34230056]
[1772136049872,7.34230056,86.5,86.41,7.34230056]
[1772136049873,9.60189909,86.496,86.433,10.4122]
[1772136050274,9.60189909,86.496,86.41,7.34230056]
[1772136051379,9.81992205,86.487,86.41,7.34230056]
[1772136052876,9.81992205,86.487,86.44,10.4114]
[1772136056681,9.81992205,86.487,86.447,10.4106]
[1772136058384,9.81992205,86.487,86.455,10.4097]
[1772136058578,9.92599038,86.502,86.43,7.34230056]
[1772136058978,9.92599038,86.539,86.45,7.34230056]
[1772136059183,9.92545918,86.525,86.45,7.34230056]
[1772136060884,9.97424981,86.521,86.472,10.4076]
[1772136061285,9.97424981,86.521,86.45,7.34230056]
[1772136061687,9.97379007,86.51,86.45,7.34230056]
[1772136061986,10.07393433,86.559,86.47,7.34230056]
[1772136062187,10.07393433,86.537,86.493,10.4051]
[1772136062886,10.07393433,86.537,86.5,10.4042]
[1772136063188,10.07393433,86.537,86.47,7.34230056]
[1772136063681,10.07361116,86.612,86.49,7.34230056]
[1772136063983,161.556,86.655,86.47,7.34230056]
[1772136063984,10.07361116,86.599,86.53,7.34230056]
[1772136064182,10.03439149,86.597,86.51,7.34230056]
[1772136064588,10.03439149,86.595,86.536,10.3999]
[1772136064889,10.03439149,86.595,86.53,7.34230056]
[1772136065589,10.0340266,86.613,86.561,10.3969]
[1772136065790,10.0340266,86.613,86.53,7.34230056]
[1772136066192,10.27114151,86.611,86.53,7.34230056]
[1772136066887,10.27114151,86.6,86.484,20.8124]
[1772136067084,10.27114151,86.6,86.51,7.34230056]
[1772136067488,10.27105667,86.598,86.537,10.3998]
[1772136068787,10.40915345,86.595,86.537,10.3998]
[1772136070292,10.37850601,86.592,86.537,10.3998]
[1772136070593,10.37850601,86.592,86.528,10.4008]
[1772136071196,10.37854136,86.588,86.51,7.34230056]
[1772136071896,10.37854136,86.588,86.533,10.4002]
[1772136072698,10.37393732,86.578,86.522,10.4016]
[1772136072889,10.37393732,86.578,86.49,7.34230056]
[1772136073294,10.37396674,86.577,86.516,10.4023]
[1772136073792,10.37396674,86.569,86.458,20.8186]
[1772136074401,10.34332081,86.544,86.487,10.4058]
[1772136074701,10.34332081,86.544,86.458,20.8186]
[1772136075402,10.34332081,86.544,86.507,10.4034]
[1772136075598,10.34332081,86.544,86.458,26.01720591]
[1772136076905,10.34332081,86.544,86.498,10.4044]
[1772136078604,10.34332081,86.544,86.506,10.4035]
[1772136078898,10.33671388,86.569,86.471,20.8155]
[1772136079104,10.33671388,86.569,86.5,7.34230056]
[1772136079303,10.33671388,86.569,86.53,10.4006]
[1772136080305,10.34562175,86.584,86.538,10.3997]
[1772136080502,20.7783,86.627,86.474,161.892]
[1772136080503,10.34562175,86.619,86.52,7.34230056]
[1772136081110,10.34562155,86.608,86.52,7.34230056]
[1772136082015,10.41956327,86.595,86.546,10.3987]
[1772136082705,10.41956327,86.595,86.556,10.3975]
[1772136084311,10.41956327,86.595,86.52,7.34230056]
[1772136085212,10.41956327,86.595,86.551,10.398]
[1772136086408,10.41956327,86.595,86.522,20.8032]
[1772136087012,10.41956327,86.595,86.52,7.34230056]
[1772136087210,10.42203194,86.592,86.52,7.34230056]
[1772136089916,10.35242296,86.59,86.532,10.4004]
[1772136090614,10.35261305,86.588,86.539,10.3995]
[1772136091214,10.35261305,86.588,86.546,10.3987]
[1772136092821,7.34230056,86.63,86.544,7.59482309]
[1772136093318,10.392,86.602,86.548,10.3985]
[1772136094118,10.392,86.602,86.555,10.3976]
[1772136094420,10.3929,86.595,86.529,7.5930529]
[1772136094823,8.23091376,86.594,86.529,7.5930529]
[1772136095926,8.23091376,86.594,86.547,10.3985]
[1772136096221,8.23091376,86.594,86.529,7.5930529]
[1772136096723,8.23091376,86.594,86.553,10.3979]
[1772136096923,8.23091376,86.594,86.543,7.87333756]
[1772136097222,8.23091376,86.594,86.55,2.7312495]
[1772136097724,8.23091376,86.594,86.562,10.3967]
[1772136098223,8.11611553,86.608,86.562,10.3967]
[1772136098724,10.3923,86.6,86.562,10.3967]
[1772136099724,18.92089073,86.6,86.556,7.86452811]
[1772136100026,8.52859073,86.589,86.54,2.7312495]
[1772136101128,8.52859073,86.586,86.546,10.3987]
[1772136102923,8.52859073,86.583,86.53,2.7312495]
[1772136103428,8.52859073,86.583,86.54,2.7312495]
[1772136104530,13.1247495,86.59,86.526,7.85466093]
[1772136104531,8.52859073,86.581,86.53,2.7312495]
[1772136104734,8.52859073,86.581,86.531,7.97622829]
[1772136105935,8.52859073,86.581,86.541,10.3993]
[1772136106631,8.52859073,86.581,86.549,10.3983]
[1772136113240,8.52859073,86.581,86.556,10.3974]